Workbook

Sheet Form
D3: GPA: Csoportos balesetbiztosítás - Gépjárművel történő utazás
B7: Szerződő neve:
B9: Szerződő címe:
B11: Biztosítottak köre: | D11: A Szerződő által lejelentett forgalmi rendszámú gépjárművekben utazó 80 év alatti természetes személyek
B14: Alkusz neve:
B16: Tevékenység:
A17: =IF(OR(D16="",D16="Kérem,válasszon!",D16="egyéb"),"","A megjelölt tevékenységi körre egyedi elbírálás alapján tud Társaságunk ajánlatot készíteni, kérjük, vegye fel velünk a kapcsolatot a csoportos@colonnade.hu email címen.") -> 
B18: Kockázatviselés kezdete:
B20: Férőhelyek száma:
B22: Rendszámok:
B25: Választott opció:
D27: Szolgáltatás | G27: Biztosítási összeg Ft/fő
G28: A Opció | H28: B Opció | I28: C Opció
D29: Baleseti halál | G29: 500 000 | H29: 1 000 000 | I29: 3 000 000
D30: Kiterjesztés - temetési költségek | G30: max. 500 000 | H30: max. 1 000 000 | I30: max. 1 000 000
D31: Baleseti Maradandó Rokkantság (1-100%) | G31: 500 000 | H31: 1 000 000 | I31: 3 000 000
D32: Kiterjesztés - átképzési költségek | G32: max. 500 000 | H32: max. 1 000 000 | I32: max. 1 000 000
D33: Kiterjesztés - kerekesszék költsége | G33: max. 500 000 | H33: max. 1 000 000 | I33: max. 1 000 000
D34: Baleseti kórházi napi térítés( 1-90 napig ) | G34: 2 000 | H34: 3 000 | I34: 5 000
D35: Önrész | G35: - | H35: - | I35: -
D36: Baleseti eredetű csonttörés ( egyösszegű ) | G36: 10 000 | H36: 20 000 | I36: 30 000
D37: Égési sérülés | G37: 250 000 | H37: 500 000 | I37: 1 000 000
D38: Baleseti műtéti térítés | G38: 100 000 | H38: 200 000 | I38: 300 000
D39: Önrész | G39: - | H39: - | I39: -
D40: Baleseti költségtérítés | G40: 20 000 | H40: 30 000 | I40: 50 000
D42: Szolgáltatási időszak | G42: OP7- Gépjárművel történő utazás
D43: Éves biztosítási díj / férőhely /év | G43: =IF(OR(D20="",D25=""),"",G45/D20) -> 
D45: Éves biztosítási díj összesen | G45: =IF(D20="","",IF(D25="A",VLOOKUP(D20,Premium!C:F,2,FALSE),IF(D25="B",VLOOKUP(D20,Premium!C:F,3,FALSE),IF(D25="C",VLOOKUP(D20,Premium!C:F,4,FALSE),"")))) -> 
D47: Feltételrendszer: Colonnade Insurance S.A. Magyarországi Fióktelepe
D48: Colonnade Csoportos baleset- és betegségbiztosítás | Szerződési Feltételek 001-2022
B50: Alulírott Szerződő tudomásul veszem, hogy a Biztosító által 202_________________-én kiadott tájékoztató díjajánlat aláírásommal a Biztosító felé szerződéskötésre tett ajánlattá (továbbiakban: ajánlat) alakul át. Tudomásul veszem, hogy - jelen ajánlati lap visszaküldése nem eredményezi sem a biztosítási szerződés automatikus, létrejöttét sem a biztosító automatikus kockázatviselését; - a biztosítási szerződéssel kapcsolatos adatokat a biztosító nyilvántartja és kezeli. Alulírott, mint Szerződő aláírásra jogosult képviselője, ezúton tudomásul veszem, hogy a biztosítási kötvényt és a hozzá kapcsolódó dokumentumokat elektronikus formában fogom megkapni. Jelen tájékoztató díjajánlatot elfogadom.
B51: Dátum: | C51: =TODAY() -> 2023-01-23
H52: szerződő/biztosított/társbiztosított cégszerű aláírása
B56: NYILATKOZAT
B57: (a 2014. évi LXXXVIII. Törvényben előírt előzetes tájékoztatásról, az ajánlatban megadott adatokról, más biztosítók megkereséséről)
B58: Alulírottak, a szerződő / biztosított / társbiztosított cégjegyzésre jogosult képviseletében ezennel kijelentjük, hogy a biztosító adatairól, a biztosítási szerződés jellemzőiről részletes írásbeli tájékoztatást kaptunk, az ezen információkat, adatokat, feltételeket tartalmazó, az ajánlatban felsorolt biztosítási feltételeket, szabályzatokat, biztosítási terméktájékoztatókat az ajánlat megtételét és aláírását megelőzően hiánytalanul átvettük, az abban foglaltakat áttanulmányoztuk, megértettük és tudomásul vettük.
B59: Kijelentjük továbbá, hogy a biztosítási ajánlaton megadott adatok, információk helyesek és azokért az ajánlat aláírásával felelősséget vállalunk.
B60: Tudomásul vesszük, hogy a biztosítási szerződés az általunk tett biztosítási ajánlaton alapul, ezért esetleges kárrendezés során a biztosító az abban foglaltakat is figyelembe veszi.
B61: Az ajánlatban szereplő kockázatviselési kezdettel hozzájárulok, hogy a biztosítókról és biztosítási tevékenységről szóló 2014. évi LXXXVIII. törvény 149 § alapján - a veszélyközösség megóvása érdekében,- a jogszabályban foglalt vagy a szerződésben vállalt kötelezettségek teljesítése során a szolgáltatások jogszabályoknak és szerződésnek megfelelő teljesítése, a biztosítási szerződésekkel kapcsolatos visszaélések megakadályozása céljából a Biztosító megkereséssel fordulhat más biztosítóhoz, illetőleg köteles adatot szolgáltatni a törvényben meghatározott adatok vonatkozásában az őt megkereső biztosítónak.
B63: (A megfelelő válaszhoz tartozó négyzetet kérjük jelölje „x”-szel)
B64: igen | C64: c | D64: nem | E64: c
B67: Dátum: | C67: =TODAY() -> 2023-01-23
H69: Szerződő/Biztosított/Társbiztosított cégszerű aláírása
B74: NYILATKOZAT
B76: 1. Orosz/Fehérorosz/Ukrán tulajdonos vagy befolyás
B78: Kijelentem, hogy az általam képviselt társaság / szerződő nem rendelkezik sem közvetetten, sem közvetlenül orosz, fehérorosz vagy ukrán tulajdonossal vagy ellenőrző befolyást gyakorló személlyel (Ororszországban, Fehéroroszországban vagy Ukrajnában bejegyzett cég, vagy ezen országokban állandó lakcímmel rendelkező magánszemélyek).
B80: 2. Oroszországban / Fehéroroszországban / Ukrajnában bejegyzett leányvállalatok
B82: Kijelentem, hogy az általam képviselt társaság / szerződő nem rendelkezik Oroszországban vagy Fehéroroszországban, illetve Ukrajnában bejegyzett társasággal, eszközzel, érdekeltséggel vagy állandó telephellyel.
B84: 3. Oroszországgal / Fehéroroszországgal / Ukrajnával fennálló üzleti kapcsolatok
B86: Kijelentem, hogy az általam képviselt társaság / szerződő közvetlenül nem értékesít semmilyen terméket, illetve nem nyújt semmilyen szolgáltatást orosz, fehérorosz, illetve ukrán piacra.
B88: Kijelentem, hogy az általam képviselt társaság / szerződő nem vásárol semmilyen terméket, illetve szolgáltatást orosz, fehérorosz, illetve ukrán személy(ek)től (Oroszországban, Fehéroroszországban vagy Ukrajnában bejegyzett cégtől, vagy ezen országokban állandó lakcímmel rendelkező magánszemélyektől).
B93: Kelt: ..........................................., 20_ _ (év) _ _ (hó) _ _ (nap)
B95: Záradék száma: INDAH-001-2022
B97: MÓDOSÍTÁSI ZÁRADÉK
B98: (Csoportos baleset-, betegség-, és utasbiztosítás)
B101: 1.A Biztosítási szerződés módosítása
B103: A Colonnade Insurance S.A. Magyarországi Fióktelepe (székhely: 1139 Budapest, Váci út 99.; továbbiakban:
B104: Biztosító) minden évben a Biztosítási szerződés évfordulója alkalmával a díjszámítás alapját képező adatok
B105: változása alapján jogosult aktualizálni a biztosítási szerződést.
B107: 2. A Biztosítási díj módosításának mechanizmusa
B109: A biztosítási díj módosításának alapjául a Központi Statisztikai Hivatal által közzétett fogyasztási főcsoportok
B110: árindexeinek átlaga figyelembevételével és az orvosi költségek indexszámai szolgálnak.
B112: 3. A módosítás elfogadása, annak jogkövetkezményei és a Biztosító teljesítésére gyakorolt hatása
B113: A Biztosító a módosított díjról a Biztosítási szerződés évfordulója előtt legalább 60 nappal írásban értesíti a Szerződőt.
B115: Amennyiben a Szerződő elfogadja a Biztosítási szerződés aktualizálását, akkor nincs teendője. Biztosító
B116: 45 nappal írásban jeleznie kell. Ebben az esetben a szerződés az évfordulót követően is változatlan éves díjon
B117: folytatódik.
B119: Figyelem! Amennyiben a Szerződő nem jelzi a megadott határidőben, hogy nem kíván élni az aktualizálással,
B120: akkor az a módosított biztosítási díj elfogadásának minősül.
B122: A biztosítási díj módosítására először a szerződés létrejöttét követő első évforduló alkalmával, meglévő
B123: szerződés esetén pedig a Módosítási záradék elfogadását követő első évforduló alkalmával kerül sor.
B125: 4. Egyéb
B127: A Biztosító által tett ajánlatban rögzített indexálástól eltérő módosítási igény esetén a Szerződőnek
B128: lehetősége van a Biztosítási szerződés aktualizálására az évfordulótól függetlenül is.
B131: NYILATKOZAT
B133: Alulírott ……………………………………………, ügyvezető mint a Szerződő/Biztosított aláírásra jogosult képviselője
B134: kijelentem, hogy:
B136: a Biztosító által megküldött Módosítási záradékot elolvastam, megértettem és azt a Biztosítási
B137: szerződés évfordulójától érvényesnek elfogadom.
B141: Kelt: ..........................................., 20_ _ (év) _ _ (hó) _ _ (nap)
E147: …………………………………………………………………………..
D148: Szerződő cégszerű aláírása
B154: Létszám | C154: Dátum | E154: Tevékenység
C155: =TODAY()+1 -> 2023-01-24 | E155: Kérem, válasszon!
C156: =C155+1 -> 2023-01-25 | E156: katonai, félkatonai
B157: 3 | C157: =C156+1 -> 2023-01-26 | E157: rendőrségi
B158: 4 | C158: 2023-01-27 | E158: vagyonvédelem
B159: 5 | C159: 2023-01-28 | E159: taxisofőr
B160: 6 | C160: 2023-01-29 | E160: légiközlekedés (pilóta, légiutas kísérő stb.)
B161: 7 | C161: 2023-01-30 | E161: mentők, OMSZ alkalmazott
B162: 8 | C162: 2023-01-31 | E162: tűzoltó
B163: 9 | C163: 2023-02-01 | E163: búvár
B164: 10 | C164: 2023-02-02 | E164: ipari alpinista
B165: 11 | C165: 2023-02-03 | E165: nehéz fizikai munkavégzés
B166: 12 | C166: 2023-02-04 | E166: magasépítés
B167: 13 | C167: 2023-02-05 | E167: hajózás
B168: 14 | C168: 2023-02-06 | E168: konténeres szállítás
B169: 15 | C169: 2023-02-07 | E169: darukezelés
B170: 16 | C170: 2023-02-08 | E170: amatőr, profi- és félprofi sport
B171: 17 | C171: 2023-02-09 | E171: egyéb
B172: 18 | C172: 2023-02-10
B173: 19 | C173: 2023-02-11
B174: 20 | C174: 2023-02-12
B175: 21 | C175: 2023-02-13
B176: 22 | C176: 2023-02-14
B177: 23 | C177: 2023-02-15
B178: 24 | C178: 2023-02-16
B179: 25 | C179: 2023-02-17
B180: 26 | C180: 2023-02-18
B181: 27 | C181: 2023-02-19
B182: 28 | C182: 2023-02-20
B183: 29 | C183: 2023-02-21
B184: 30 | C184: 2023-02-22
B185: 31 | C185: 2023-02-23
B186: 32 | C186: 2023-02-24
B187: 33 | C187: 2023-02-25
B188: 34 | C188: 2023-02-26
B189: 35 | C189: 2023-02-27
B190: 36 | C190: 2023-02-28
B191: 37 | C191: 2023-03-01
B192: 38 | C192: 2023-03-02
B193: 39 | C193: 2023-03-03
B194: 40 | C194: 2023-03-04
B195: 41 | C195: 2023-03-05
B196: 42 | C196: 2023-03-06
B197: 43 | C197: 2023-03-07
B198: 44 | C198: 2023-03-08
B199: 45 | C199: 2023-03-09
B200: 46 | C200: 2023-03-10
B201: 47 | C201: 2023-03-11
B202: 48 | C202: 2023-03-12
B203: 49 | C203: 2023-03-13
B204: 50 | C204: 2023-03-14
B205: 51 | C205: 2023-03-15
B206: 52 | C206: 2023-03-16
B207: 53 | C207: 2023-03-17
B208: 54 | C208: 2023-03-18
B209: 55 | C209: 2023-03-19
B210: 56 | C210: 2023-03-20
B211: 57 | C211: 2023-03-21
B212: 58 | C212: 2023-03-22
B213: 59 | C213: 2023-03-23
B214: 60 | C214: 2023-03-24
B215: 61 | C215: 2023-03-25
B216: 62 | C216: 2023-03-26
B217: 63 | C217: 2023-03-27
B218: 64 | C218: 2023-03-28
B219: 65 | C219: 2023-03-29
B220: 66 | C220: 2023-03-30
B221: 67 | C221: =C220+1 -> 2023-03-31
B222: 68 | C222: 2023-04-01
B223: 69 | C223: 2023-04-02
B224: 70 | C224: 2023-04-03
B225: 71 | C225: 2023-04-04
B226: 72 | C226: 2023-04-05
B227: 73 | C227: 2023-04-06
B228: 74 | C228: 2023-04-07
B229: 75 | C229: 2023-04-08
B230: 76 | C230: 2023-04-09
B231: 77 | C231: 2023-04-10
B232: 78 | C232: 2023-04-11
B233: 79 | C233: 2023-04-12
B234: 80 | C234: 2023-04-13
B235: 81 | C235: 2023-04-14
B236: 82 | C236: 2023-04-15
B237: 83 | C237: 2023-04-16
B238: 84 | C238: 2023-04-17
B239: 85 | C239: 2023-04-18
B240: 86 | C240: 2023-04-19
B241: 87 | C241: 2023-04-20
B242: 88 | C242: 2023-04-21
B243: 89 | C243: 2023-04-22
B244: 90 | C244: 2023-04-23
B245: 91 | C245: 2023-04-24
B246: 92 | C246: 2023-04-25
B247: 93 | C247: 2023-04-26
B248: 94 | C248: 2023-04-27
B249: 95 | C249: 2023-04-28
B250: 96 | C250: 2023-04-29
B251: 97 | C251: 2023-04-30
B252: 98 | C252: 2023-05-01
B253: 99 | C253: 2023-05-02
B254: 100 | C254: 2023-05-03
B255: 101 | C255: 2023-05-04
B256: 102 | C256: 2023-05-05
B257: 103 | C257: 2023-05-06
B258: 104 | C258: 2023-05-07
B259: 105 | C259: 2023-05-08
B260: 106 | C260: 2023-05-09
B261: 107 | C261: 2023-05-10
B262: 108 | C262: 2023-05-11
B263: 109 | C263: 2023-05-12
B264: 110 | C264: 2023-05-13
B265: 111 | C265: 2023-05-14
B266: 112 | C266: 2023-05-15
B267: 113 | C267: 2023-05-16
B268: 114 | C268: 2023-05-17
B269: 115 | C269: 2023-05-18
B270: 116 | C270: 2023-05-19
B271: 117 | C271: 2023-05-20
... 1005 more rows

Sheet Premium (hidden)
A1: Opció | B1: Díj/férőhely | C1: Létszám | D1: A | E1: B | F1: C
A2: A | B2: 700 | C2: 3 | D2: =30000 -> 30000 | E2: =30000 -> 30000 | F2: =30000 -> 30000
A3: B | B3: 1240 | C3: 4 | D3: =30000 -> 30000 | E3: =30000 -> 30000 | F3: =30000 -> 30000
A4: C | B4: 2333 | C4: 5 | D4: =30000 -> 30000 | E4: =30000 -> 30000 | F4: =30000 -> 30000
C5: 6 | D5: =30000 -> 30000 | E5: =30000 -> 30000 | F5: =30000 -> 30000
C6: 7 | D6: =30000 -> 30000 | E6: =30000 -> 30000 | F6: =30000 -> 30000
C7: 8 | D7: =30000 -> 30000 | E7: =30000 -> 30000 | F7: =30000 -> 30000
C8: 9 | D8: =30000 -> 30000 | E8: =30000 -> 30000 | F8: =30000 -> 30000
C9: 10 | D9: =30000 -> 30000 | E9: =30000 -> 30000 | F9: =30000 -> 30000
C10: 11 | D10: =30000 -> 30000 | E10: =30000 -> 30000 | F10: =30000 -> 30000
C11: 12 | D11: =30000 -> 30000 | E11: =30000 -> 30000 | F11: =30000 -> 30000
C12: 13 | D12: =30000 -> 30000 | E12: =30000 -> 30000 | F12: =$B$4*C12 -> 30329
C13: 14 | D13: =30000 -> 30000 | E13: =30000 -> 30000 | F13: 32662
C14: 15 | D14: =30000 -> 30000 | E14: =30000 -> 30000 | F14: 34995
C15: 16 | D15: =30000 -> 30000 | E15: =30000 -> 30000 | F15: 37328
C16: 17 | D16: =30000 -> 30000 | E16: =30000 -> 30000 | F16: 39661
C17: 18 | D17: =30000 -> 30000 | E17: =30000 -> 30000 | F17: 41994
C18: 19 | D18: =30000 -> 30000 | E18: =30000 -> 30000 | F18: 44327
C19: 20 | D19: =30000 -> 30000 | E19: =30000 -> 30000 | F19: 46660
C20: 21 | D20: =30000 -> 30000 | E20: =30000 -> 30000 | F20: 48993
C21: 22 | D21: =30000 -> 30000 | E21: =30000 -> 30000 | F21: 51326
C22: 23 | D22: =30000 -> 30000 | E22: =30000 -> 30000 | F22: 53659
C23: 24 | D23: =30000 -> 30000 | E23: =30000 -> 30000 | F23: 55992
C24: 25 | D24: =30000 -> 30000 | E24: =$B$3*C24 -> 31000 | F24: 58325
C25: 26 | D25: =30000 -> 30000 | E25: 32240 | F25: 60658
C26: 27 | D26: =30000 -> 30000 | E26: 33480 | F26: 62991
C27: 28 | D27: =30000 -> 30000 | E27: 34720 | F27: 65324
C28: 29 | D28: =30000 -> 30000 | E28: 35960 | F28: 67657
C29: 30 | D29: =30000 -> 30000 | E29: 37200 | F29: 69990
C30: 31 | D30: =30000 -> 30000 | E30: 38440 | F30: 72323
C31: 32 | D31: =30000 -> 30000 | E31: 39680 | F31: 74656
C32: 33 | D32: =30000 -> 30000 | E32: 40920 | F32: 76989
C33: 34 | D33: =30000 -> 30000 | E33: 42160 | F33: 79322
C34: 35 | D34: =30000 -> 30000 | E34: 43400 | F34: 81655
C35: 36 | D35: =30000 -> 30000 | E35: 44640 | F35: 83988
C36: 37 | D36: =30000 -> 30000 | E36: 45880 | F36: 86321
C37: 38 | D37: =30000 -> 30000 | E37: 47120 | F37: 88654
C38: 39 | D38: =30000 -> 30000 | E38: 48360 | F38: 90987
C39: 40 | D39: =30000 -> 30000 | E39: 49600 | F39: 93320
C40: 41 | D40: =30000 -> 30000 | E40: 50840 | F40: 95653
C41: 42 | D41: =30000 -> 30000 | E41: 52080 | F41: 97986
C42: 43 | D42: =$B$2*C42 -> 30100 | E42: 53320 | F42: 100319
C43: 44 | D43: 30800 | E43: 54560 | F43: 102652
C44: 45 | D44: 31500 | E44: 55800 | F44: 104985
C45: 46 | D45: 32200 | E45: 57040 | F45: 107318
C46: 47 | D46: 32900 | E46: 58280 | F46: 109651
C47: 48 | D47: 33600 | E47: 59520 | F47: 111984
C48: 49 | D48: 34300 | E48: 60760 | F48: 114317
C49: 50 | D49: 35000 | E49: 62000 | F49: 116650
C50: 51 | D50: 35700 | E50: 63240 | F50: 118983
C51: 52 | D51: 36400 | E51: 64480 | F51: 121316
C52: 53 | D52: 37100 | E52: 65720 | F52: 123649
C53: 54 | D53: 37800 | E53: 66960 | F53: 125982
C54: 55 | D54: 38500 | E54: 68200 | F54: 128315
C55: 56 | D55: 39200 | E55: 69440 | F55: 130648
C56: 57 | D56: 39900 | E56: 70680 | F56: 132981
C57: 58 | D57: 40600 | E57: 71920 | F57: 135314
C58: 59 | D58: 41300 | E58: 73160 | F58: 137647
C59: 60 | D59: 42000 | E59: 74400 | F59: 139980
C60: 61 | D60: 42700 | E60: 75640 | F60: 142313
C61: 62 | D61: 43400 | E61: 76880 | F61: 144646
C62: 63 | D62: 44100 | E62: 78120 | F62: 146979
C63: 64 | D63: 44800 | E63: 79360 | F63: 149312
C64: 65 | D64: 45500 | E64: 80600 | F64: 151645
C65: 66 | D65: 46200 | E65: 81840 | F65: 153978
C66: 67 | D66: 46900 | E66: 83080 | F66: 156311
C67: 68 | D67: 47600 | E67: =$B$3*C67 -> 84320 | F67: =$B$4*C67 -> 158644
C68: 69 | D68: =$B$2*C68 -> 48300 | E68: 85560 | F68: 160977
C69: 70 | D69: 49000 | E69: 86800 | F69: 163310
C70: 71 | D70: 49700 | E70: 88040 | F70: 165643
C71: 72 | D71: 50400 | E71: 89280 | F71: 167976
C72: 73 | D72: 51100 | E72: 90520 | F72: 170309
C73: 74 | D73: 51800 | E73: 91760 | F73: 172642
C74: 75 | D74: 52500 | E74: 93000 | F74: 174975
C75: 76 | D75: 53200 | E75: 94240 | F75: 177308
C76: 77 | D76: 53900 | E76: 95480 | F76: 179641
C77: 78 | D77: 54600 | E77: 96720 | F77: 181974
C78: 79 | D78: 55300 | E78: 97960 | F78: 184307
C79: 80 | D79: 56000 | E79: 99200 | F79: 186640
C80: 81 | D80: 56700 | E80: 100440 | F80: 188973
C81: 82 | D81: 57400 | E81: 101680 | F81: 191306
C82: 83 | D82: 58100 | E82: 102920 | F82: 193639
C83: 84 | D83: 58800 | E83: 104160 | F83: 195972
C84: 85 | D84: 59500 | E84: 105400 | F84: 198305
C85: 86 | D85: 60200 | E85: 106640 | F85: 200638
C86: 87 | D86: 60900 | E86: 107880 | F86: 202971
C87: 88 | D87: 61600 | E87: 109120 | F87: 205304
C88: 89 | D88: 62300 | E88: 110360 | F88: 207637
C89: 90 | D89: 63000 | E89: 111600 | F89: 209970
C90: 91 | D90: 63700 | E90: 112840 | F90: 212303
C91: 92 | D91: 64400 | E91: 114080 | F91: 214636
C92: 93 | D92: 65100 | E92: 115320 | F92: 216969
C93: 94 | D93: 65800 | E93: 116560 | F93: 219302
C94: 95 | D94: 66500 | E94: 117800 | F94: 221635
C95: 96 | D95: 67200 | E95: 119040 | F95: 223968
C96: 97 | D96: 67900 | E96: 120280 | F96: 226301
C97: 98 | D97: 68600 | E97: 121520 | F97: 228634
C98: 99 | D98: 69300 | E98: 122760 | F98: 230967
C99: 100 | D99: 70000 | E99: 124000 | F99: 233300
C100: 101 | D100: 70700 | E100: 125240 | F100: 235633
C101: 102 | D101: 71400 | E101: 126480 | F101: 237966
C102: 103 | D102: 72100 | E102: 127720 | F102: 240299
C103: 104 | D103: 72800 | E103: 128960 | F103: 242632
C104: 105 | D104: 73500 | E104: 130200 | F104: 244965
C105: 106 | D105: 74200 | E105: 131440 | F105: 247298
C106: 107 | D106: 74900 | E106: 132680 | F106: 249631
C107: 108 | D107: 75600 | E107: 133920 | F107: 251964
C108: 109 | D108: 76300 | E108: 135160 | F108: 254297
C109: 110 | D109: 77000 | E109: 136400 | F109: 256630
C110: 111 | D110: 77700 | E110: 137640 | F110: 258963
C111: 112 | D111: 78400 | E111: 138880 | F111: 261296
C112: 113 | D112: 79100 | E112: 140120 | F112: 263629
C113: 114 | D113: 79800 | E113: 141360 | F113: 265962
C114: 115 | D114: 80500 | E114: 142600 | F114: 268295
C115: 116 | D115: 81200 | E115: 143840 | F115: 270628
C116: 117 | D116: 81900 | E116: 145080 | F116: 272961
C117: 118 | D117: 82600 | E117: 146320 | F117: 275294
C118: 119 | D118: 83300 | E118: 147560 | F118: 277627
C119: 120 | D119: 84000 | E119: 148800 | F119: 279960
C120: 121 | D120: 84700 | E120: 150040 | F120: 282293
C121: 122 | D121: 85400 | E121: 151280 | F121: 284626
C122: 123 | D122: 86100 | E122: 152520 | F122: 286959
C123: 124 | D123: 86800 | E123: 153760 | F123: 289292
C124: 125 | D124: 87500 | E124: 155000 | F124: 291625
C125: 126 | D125: 88200 | E125: 156240 | F125: 293958
C126: 127 | D126: 88900 | E126: 157480 | F126: 296291
C127: 128 | D127: 89600 | E127: 158720 | F127: 298624
C128: 129 | D128: 90300 | E128: 159960 | F128: 300957
C129: 130 | D129: 91000 | E129: 161200 | F129: 303290
C130: 131 | D130: 91700 | E130: 162440 | F130: 305623
C131: 132 | D131: 92400 | E131: =$B$3*C131 -> 163680 | F131: =$B$4*C131 -> 307956
C132: 133 | D132: =$B$2*C132 -> 93100 | E132: 164920 | F132: 310289
C133: 134 | D133: 93800 | E133: 166160 | F133: 312622
C134: 135 | D134: 94500 | E134: 167400 | F134: 314955
C135: 136 | D135: 95200 | E135: 168640 | F135: 317288
C136: 137 | D136: 95900 | E136: 169880 | F136: 319621
C137: 138 | D137: 96600 | E137: 171120 | F137: 321954
C138: 139 | D138: 97300 | E138: 172360 | F138: 324287
C139: 140 | D139: 98000 | E139: 173600 | F139: 326620
C140: 141 | D140: 98700 | E140: 174840 | F140: 328953
C141: 142 | D141: 99400 | E141: 176080 | F141: 331286
C142: 143 | D142: 100100 | E142: 177320 | F142: 333619
C143: 144 | D143: 100800 | E143: 178560 | F143: 335952
C144: 145 | D144: 101500 | E144: 179800 | F144: 338285
C145: 146 | D145: 102200 | E145: 181040 | F145: 340618
C146: 147 | D146: 102900 | E146: 182280 | F146: 342951
C147: 148 | D147: 103600 | E147: 183520 | F147: 345284
C148: 149 | D148: 104300 | E148: 184760 | F148: 347617
C149: 150 | D149: 105000 | E149: 186000 | F149: 349950
C150: 151 | D150: 105700 | E150: 187240 | F150: 352283
C151: 152 | D151: 106400 | E151: 188480 | F151: 354616
C152: 153 | D152: 107100 | E152: 189720 | F152: 356949
C153: 154 | D153: 107800 | E153: 190960 | F153: 359282
C154: 155 | D154: 108500 | E154: 192200 | F154: 361615
C155: 156 | D155: 109200 | E155: 193440 | F155: 363948
C156: 157 | D156: 109900 | E156: 194680 | F156: 366281
C157: 158 | D157: 110600 | E157: 195920 | F157: 368614
C158: 159 | D158: 111300 | E158: 197160 | F158: 370947
C159: 160 | D159: 112000 | E159: 198400 | F159: 373280
C160: 161 | D160: 112700 | E160: 199640 | F160: 375613
C161: 162 | D161: 113400 | E161: 200880 | F161: 377946
C162: 163 | D162: 114100 | E162: 202120 | F162: 380279
C163: 164 | D163: 114800 | E163: 203360 | F163: 382612
C164: 165 | D164: 115500 | E164: 204600 | F164: 384945
C165: 166 | D165: 116200 | E165: 205840 | F165: 387278
C166: 167 | D166: 116900 | E166: 207080 | F166: 389611
C167: 168 | D167: 117600 | E167: 208320 | F167: 391944
C168: 169 | D168: 118300 | E168: 209560 | F168: 394277
C169: 170 | D169: 119000 | E169: 210800 | F169: 396610
C170: 171 | D170: 119700 | E170: 212040 | F170: 398943
C171: 172 | D171: 120400 | E171: 213280 | F171: 401276
C172: 173 | D172: 121100 | E172: 214520 | F172: 403609
C173: 174 | D173: 121800 | E173: 215760 | F173: 405942
C174: 175 | D174: 122500 | E174: 217000 | F174: 408275
C175: 176 | D175: 123200 | E175: 218240 | F175: 410608
C176: 177 | D176: 123900 | E176: 219480 | F176: 412941
C177: 178 | D177: 124600 | E177: 220720 | F177: 415274
C178: 179 | D178: 125300 | E178: 221960 | F178: 417607
C179: 180 | D179: 126000 | E179: 223200 | F179: 419940
C180: 181 | D180: 126700 | E180: 224440 | F180: 422273
C181: 182 | D181: 127400 | E181: 225680 | F181: 424606
C182: 183 | D182: 128100 | E182: 226920 | F182: 426939
C183: 184 | D183: 128800 | E183: 228160 | F183: 429272
C184: 185 | D184: 129500 | E184: 229400 | F184: 431605
C185: 186 | D185: 130200 | E185: 230640 | F185: 433938
C186: 187 | D186: 130900 | E186: 231880 | F186: 436271
C187: 188 | D187: 131600 | E187: 233120 | F187: 438604
C188: 189 | D188: 132300 | E188: 234360 | F188: 440937
C189: 190 | D189: 133000 | E189: 235600 | F189: 443270
C190: 191 | D190: 133700 | E190: 236840 | F190: 445603
C191: 192 | D191: 134400 | E191: 238080 | F191: 447936
C192: 193 | D192: 135100 | E192: 239320 | F192: 450269
C193: 194 | D193: 135800 | E193: 240560 | F193: 452602
C194: 195 | D194: 136500 | E194: 241800 | F194: 454935
C195: 196 | D195: 137200 | E195: =$B$3*C195 -> 243040 | F195: =$B$4*C195 -> 457268
C196: 197 | D196: =$B$2*C196 -> 137900 | E196: 244280 | F196: 459601
C197: 198 | D197: 138600 | E197: 245520 | F197: 461934
C198: 199 | D198: 139300 | E198: 246760 | F198: 464267
C199: 200 | D199: 140000 | E199: 248000 | F199: 466600

Sheet Premiums (hidden)
A1: Létszám | B1: A Opció | C1: B Opció | D1: C Opció
A2: 3 | B2: 50000 | C2: 53100 | D2: 72000
A3: 4 | B3: 50000 | C3: 70800 | D3: 96000
A4: 5 | B4: 52500 | C4: 88500 | D4: 120000
A5: 6 | B5: 63000 | C5: 106200 | D5: 144000
A6: 7 | B6: 73500 | C6: 123900 | D6: 168000
A7: 8 | B7: 84000 | C7: 141600 | D7: 192000
A8: 9 | B8: 94500 | C8: 159300 | D8: 216000
A9: 10 | B9: 105000 | C9: 177000 | D9: 240000
A10: 11 | B10: 115500 | C10: 194700 | D10: 264000
A11: 12 | B11: 126000 | C11: 212400 | D11: 288000
A12: 13 | B12: 136500 | C12: 230100 | D12: 312000
A13: 14 | B13: 147000 | C13: 247800 | D13: 336000
A14: 15 | B14: 157500 | C14: 265500 | D14: 360000
A15: 16 | B15: 168000 | C15: 283200 | D15: 384000
A16: 17 | B16: 178500 | C16: 300900 | D16: 408000
A17: 18 | B17: 189000 | C17: 318600 | D17: 432000
A18: 19 | B18: 199500 | C18: 336300 | D18: 456000
A19: 20 | B19: 210000 | C19: 354000 | D19: 480000
A20: 21 | B20: 220500 | C20: 371700 | D20: 504000
A21: 22 | B21: 231000 | C21: 389400 | D21: 528000
A22: 23 | B22: 241500 | C22: 407100 | D22: 552000
A23: 24 | B23: 252000 | C23: 424800 | D23: 576000
A24: 25 | B24: 262500 | C24: 442500 | D24: 600000
A25: 26 | B25: 257400 | C25: 436800 | D25: 585000
A26: 27 | B26: 267300 | C26: 453600 | D26: 607500
A27: 28 | B27: 277200 | C27: 470400 | D27: 630000
A28: 29 | B28: 287100 | C28: 487200 | D28: 652500
A29: 30 | B29: 297000 | C29: 504000 | D29: 675000
A30: 31 | B30: 306900 | C30: 520800 | D30: 697500
A31: 32 | B31: 316800 | C31: 537600 | D31: 720000
A32: 33 | B32: 326700 | C32: 554400 | D32: 742500
A33: 34 | B33: 336600 | C33: 571200 | D33: 765000
A34: 35 | B34: 346500 | C34: 588000 | D34: 787500
A35: 36 | B35: 356400 | C35: 604800 | D35: 810000
A36: 37 | B36: 366300 | C36: 621600 | D36: 832500
A37: 38 | B37: 376200 | C37: 638400 | D37: 855000
A38: 39 | B38: 386100 | C38: 655200 | D38: 877500
A39: 40 | B39: 396000 | C39: 672000 | D39: 900000
A40: 41 | B40: 405900 | C40: 688800 | D40: 922500
A41: 42 | B41: 415800 | C41: 705600 | D41: 945000
A42: 43 | B42: 425700 | C42: 722400 | D42: 967500
A43: 44 | B43: 435600 | C43: 739200 | D43: 990000
A44: 45 | B44: 445500 | C44: 756000 | D44: 1012500
A45: 46 | B45: 455400 | C45: 772800 | D45: 1035000
A46: 47 | B46: 465300 | C46: 789600 | D46: 1057500
A47: 48 | B47: 475200 | C47: 806400 | D47: 1080000
A48: 49 | B48: 485100 | C48: 823200 | D48: 1102500
A49: 50 | B49: 495000 | C49: 840000 | D49: 1125000
A50: 51 | B50: 443700 | C50: 765000 | D50: 1040400
A51: 52 | B51: 452400 | C51: 780000 | D51: 1060800
A52: 53 | B52: 461100 | C52: 795000 | D52: 1081200
A53: 54 | B53: 469800 | C53: 810000 | D53: 1101600
A54: 55 | B54: 478500 | C54: 825000 | D54: 1122000
A55: 56 | B55: 487200 | C55: 840000 | D55: 1142400
A56: 57 | B56: 495900 | C56: 855000 | D56: 1162800
A57: 58 | B57: 504600 | C57: 870000 | D57: 1183200
A58: 59 | B58: 513300 | C58: 885000 | D58: 1203600
A59: 60 | B59: 522000 | C59: 900000 | D59: 1224000
A60: 61 | B60: 530700 | C60: 915000 | D60: 1244400
A61: 62 | B61: 539400 | C61: 930000 | D61: 1264800
A62: 63 | B62: 548100 | C62: 945000 | D62: 1285200
A63: 64 | B63: 556800 | C63: 960000 | D63: 1305600
A64: 65 | B64: 565500 | C64: 975000 | D64: 1326000
A65: 66 | B65: 574200 | C65: 990000 | D65: 1346400
A66: 67 | B66: 582900 | C66: 1005000 | D66: 1366800
A67: 68 | B67: 591600 | C67: 1020000 | D67: 1387200
A68: 69 | B68: 600300 | C68: 1035000 | D68: 1407600
A69: 70 | B69: 609000 | C69: 1050000 | D69: 1428000
A70: 71 | B70: 617700 | C70: 1065000 | D70: 1448400
A71: 72 | B71: 626400 | C71: 1080000 | D71: 1468800
A72: 73 | B72: 635100 | C72: 1095000 | D72: 1489200
A73: 74 | B73: 643800 | C73: 1110000 | D73: 1509600
A74: 75 | B74: 652500 | C74: 1125000 | D74: 1530000
A75: 76 | B75: 615600 | C75: 1048800 | D75: 1436400
A76: 77 | B76: 623700 | C76: 1062600 | D76: 1455300
A77: 78 | B77: 631800 | C77: 1076400 | D77: 1474200
A78: 79 | B78: 639900 | C78: 1090200 | D78: 1493100
A79: 80 | B79: 648000 | C79: 1104000 | D79: 1512000
A80: 81 | B80: 656100 | C80: 1117800 | D80: 1530900
A81: 82 | B81: 664200 | C81: 1131600 | D81: 1549800
A82: 83 | B82: 672300 | C82: 1145400 | D82: 1568700
A83: 84 | B83: 680400 | C83: 1159200 | D83: 1587600
A84: 85 | B84: 688500 | C84: 1173000 | D84: 1606500
A85: 86 | B85: 696600 | C85: 1186800 | D85: 1625400
A86: 87 | B86: 704700 | C86: 1200600 | D86: 1644300
A87: 88 | B87: 712800 | C87: 1214400 | D87: 1663200
A88: 89 | B88: 720900 | C88: 1228200 | D88: 1682100
A89: 90 | B89: 729000 | C89: 1242000 | D89: 1701000
A90: 91 | B90: 737100 | C90: 1255800 | D90: 1719900
A91: 92 | B91: 745200 | C91: 1269600 | D91: 1738800
A92: 93 | B92: 753300 | C92: 1283400 | D92: 1757700
A93: 94 | B93: 761400 | C93: 1297200 | D93: 1776600
A94: 95 | B94: 769500 | C94: 1311000 | D94: 1795500
A95: 96 | B95: 777600 | C95: 1324800 | D95: 1814400
A96: 97 | B96: 785700 | C96: 1338600 | D96: 1833300
A97: 98 | B97: 793800 | C97: 1352400 | D97: 1852200
A98: 99 | B98: 801900 | C98: 1366200 | D98: 1871100
A99: 100 | B99: 810000 | C99: 1380000 | D99: 1890000
